Workbook

Sheet Menu Sheet
B3: Contact | C3: Gordon Lyman | L3: Bill Griswold
B4: Email | C4: gl@esystemtraining.com | L4: BillGriswold@Live.com
B5: Mobile No | C5: (210) 410-2091 | F5: Project Setup Menu | L5: (704) 906-9113
AA6: Directions
F7: Note: Fields in | G7: Blue | H7: are for input. | Q7: Yes
E8: Project Information: | K8: Contractor Info: | Q8: No | AA8: 1 - Put the Project Information and the Contractor Information into the appropiate cells to the left. This information will appear in the "Rigging Plan". 2 - The Lats and Longs can either be input as Degrees, Minutes and Seconds, or in decimal format in the Degree input cell. If input in decimal format the numbers in the Min and Sec cells are ignored. 3 - To ensure the total load lift is attained, the actual load goes into the "Lifted Load" cell and the rigging accessories and overhaul ball go into the "Ball & Rigging" cell. 4 - The weight of the cables and the friction in the sheaves are automatically calculated and included in the forces. 5 - It is critical that the equipment tab be filled out with your equipment and capacities, then make your selections (See the Equipment Tab for Listing) 6 - Select the Type of Rigging Scheme (1, 2, or 3) or the Angle Finder by pressing the button under the picture. 7 - On the Rigging Type Sheet Select the Tower Type and fill in the dimension blocks outlined in BLUE. All of the loading and equipment information will appear on all 3 Lift Types. 8 - On the Type I and Type III Lift Types you may select either 1, 2 or 3 line parts between the Crown Block and the Load. 9 - The buttons provide easy navigation between the different sheets of this spreadsheet. 10 - For further instructions see the "Rigging Plan", "Face Block Mount" and "Equipment" tabs.
B9: Date: mm/dd | I9: Company: | S9: =VLOOKUP(K19,Equipment!B27:C38,2,FALSE) -> 1000
B10: Client Name: | I10: Address: | S10: =VLOOKUP(K20,Equipment!B27:C38,2,FALSE) -> 1000
B11: Client Job No.: | I11: City, State, Zip: | S11: =VLOOKUP(K21,Equipment!B11:C22,2,FALSE) -> 770
B12: Site Name: | I12: Company Contact: | S12: =VLOOKUP(K22,Equipment!B11:C22,2,FALSE) -> 200
B13: Site No.: | I13: Contact Phone: | K13: =IF(K12="","",VLOOKUP(K12,Contacts!F4:G12,2,FALSE)) -> 
B14: Site Address: | I14: Competent Rigger:
B15: Site City, State, Zip: | I15: Company Job No:
B16: Site Lat: Deg, Min, Sec | I16: Rigging Plan No.: | S16: =INT(E16) -> 0 | T16: =INT((E16 - S16)*60) + IF(INT(E16)<E16,0,F16) -> 0 | U16: =ROUND(((E16*60) - INT((E16)*60))*60 + IF(INT(E16)<E16,0,G16),2) -> 0
B17: Site Long: Deg, Min, Sec | I17: Lifted Load (lbs): | R17: =ABS(E17) -> 0 | S17: =-INT(R17) -> 0 | T17: =INT((R17 + S17)*60) + IF(INT(E17)<E17,0,F17) -> 0 | U17: =ROUND(((R17*60) - INT((R17)*60))*60 + IF(INT(E17)<E17,0,G17),2) -> 0
B18: Force to Class IV | E18: No | I18: Ball & Rigging (lbs): | Q18: =VLOOKUP(K19,Equipment!O26:P37,2,FALSE) -> 1.02
I19: Crown Block | K19: Block 1 - 1000 | Q19: =VLOOKUP(K20,Equipment!O26:P37,2,FALSE) -> 1.02
I20: Heel Block | K20: Block 1 - 1000 | Q20: =VLOOKUP(K21,Equipment!O11:Q22,3,FALSE) -> 0.08
I21: Lift Hoist | K21: Capstan - 770 | P21: =VLOOKUP(K21,Equipment!O11:R22,4,FALSE) -> Synthetic | Q21: =VLOOKUP(K22,Equipment!O11:Q22,3,FALSE) -> 0.08
I22: Tag Hoist | K22: Hand | P22: =VLOOKUP(K22,Equipment!O11:R22,4,FALSE) -> Synthetic
Q24: =K14 -> 0 | S24: =VLOOKUP(Q24,Contacts!B4:D12,2,FALSE) ->  | U24: =VLOOKUP(Q24,Contacts!B4:D12,3,FALSE) -> 
AA36: If a Drop Down type cell is not working correctly Right Mouse Click on the Cell to Activate it.
B54: Disclaimer: The information and calculations provided by this document have been developed by a reliable source in compliance with industry standards and are believed to be correct. This information should not be relied upon for a specific application without competent professional examination and verification of its accuracy, suitability, and applicability. This document may not be adaptable to all situations and should be used at your own risk.
B56: =Credits!B11 -> Version 5.6 - February 19, 2019 | N56: Developed by Griswold Tower Software, PC

Sheet Rigging Plan
A1: Paste Logo from PowerPoint Into this Location | F1: ='Menu Sheet'!K9 -> 0 | T1: To put your logo on the Rigging Plan Page, first copy the Logo into PowerPoint. Press the "Unlock for Logo Placement" button. Then Copy your Logo from PowerPoint and Paste it into the space provided in the Upper Left Corner of this sheet. Finally, press the "Relock after Logo Placement" button.
F2: ='Menu Sheet'!K10 -> 0
F3: ='Menu Sheet'!K11 -> 0
F4: ="Contact - "&'Menu Sheet'!K12 -> Contact -
F5: ='Menu Sheet'!K13 -> 
A6: ="Rigging Plan No. "&'Menu Sheet'!K16 -> Rigging Plan No. | H6: Color of All Input Fields
A7: Project Information
A8: Site Name | C8: ='Menu Sheet'!E12 -> 0 | F8: Date | H8: ='Menu Sheet'!E9 -> 00:00:00
A9: Site Number | C9: ='Menu Sheet'!E13 -> 0 | F9: Customer | H9: =IF('Menu Sheet'!E10="","",'Menu Sheet'!E10) ->  | P9: Class I
A10: Site Address | C10: ='Menu Sheet'!E14 -> 0 | F10: Customer Project # | H10: =IF('Menu Sheet'!E11="","",'Menu Sheet'!E11) ->  | P10: Class II
C11: ='Menu Sheet'!E15 -> 0 | F11: Latitude | H11: ='Menu Sheet'!S16&" Deg "&'Menu Sheet'!T16&" Min "&'Menu Sheet'!U16&" Sec" -> 0 Deg 0 Min 0 Sec | N11: Engr May Be Req'd | P11: Class III
A12: Project Number | C12: ='Menu Sheet'!K15 -> 0 | F12: Longitude | H12: ='Menu Sheet'!S17&" Deg "&'Menu Sheet'!T17&" Min "&'Menu Sheet'!U17&" Sec" -> 0 Deg 0 Min 0 Sec | N12: E27 | O12: =IF(E27="X",1,0) -> 0 | P12: Class IV
A13: Rigging Plan Class | C13: =IF('Menu Sheet'!E18="YES","Class IV",IF(M20>0,"Class IV",M24)) -> Class I | F13: Gross Load (lbs) | H13: =IF(C42="Type I",Q23,IF(C42="Type II",Q24,Q25)) -> 55.07431199 | L13: Engr Req'd | N13: E24 | O13: =IF(E24="X",1,0) -> 0
E14: Lbs. | M14: =IF(E31="X",1,0) -> 0
A15: Persons Responsible | D15: Name | G15: Company | I15: Phone | L15: E26 | M15: =IF(E26="X",1,0) -> 0 | N15: E29 | O15: =IF(E29="X",1,0) -> 0 | P15: Monopole
A16: Competent Rigger | D16: =IF('Menu Sheet'!K14="","",'Menu Sheet'!K14) ->  | G16: =IF(D16="","",'Menu Sheet'!S24) ->  | I16: =IF(D16="","",'Menu Sheet'!U24) ->  | N16: E30 | O16: =IF(E30="X",1,0) -> 0 | P16: Self Support
A17: ="Qualified Person "&M25 -> Qualified Person Not Req'd | G17: =IF(D17="","",O30) ->  | I17: =IF(D17="","",Q30) ->  | L17: G33 | M17: =IF(G33="X",1,0) -> 0 | N17: J26 | O17: =IF(J26="X",1,0) -> 0 | P17: Guyed
A18: ="Qualified Engr "&M21 -> Qualified Engr Not Req'd | G18: =IF(D18="","",O31) ->  | I18: =IF(D18="","",Q31) ->  | L18: J48 | M18: =IF(J48="X",1,0) -> 0 | N18: J27 | O18: =IF(J27="X",1,0) -> 0 | P18: Roof Top
A19: Type of Structure | C19: =IF(C42="Type I",R23,IF(C42="Type II",R24,R25)) -> Self Support Tower | L19: H13 | M19: =IF(H13>2000,1,0) -> 0 | N19: G32 | O19: =IF(G32="X",1,0) -> 0 | P19: Other
A20: Structure Data | L20: SUM | M20: =SUM(M15:M19) -> 0 | N20: SUM | O20: =SUM(O12:O19) -> 0
A21: Manufacturer | F21: Height (AGL) feet | L21: Engr | M21: =IF('Menu Sheet'!E18="YES","Req'd",IF(M24="Class IV","Req'd",IF(M20>0,"Req'd",IF(O20>0,"May Be Req'd","Not Req'd")))) -> Not Req'd | P21: X
A22: Face width @ base | E22: (feet) | F22: Typical section length (feet)
A23: General Scope of Work (check all that apply) | P23: Type I | Q23: ='Type 1'!G17 -> 55.07431199 | R23: ='Type 1'!G18 -> Self Support Tower
A24: ="Install new structure "&IF(M21="Req'd","",IF(E24="X","- Engr May Be Req'd","")) -> Install new structure | F24: Add or remove antennas | L24: Weight | M24: =IF(H13<351,"Class I",IF(H13<501,"Class II",IF(H13<2001,"Class III","Class IV"))) -> Class I | P24: Type II | Q24: ='Type 2'!E17 -> 17.03858022 | R24: ='Type 2'!E18 -> Self Support Tower
A25: Add or remove coax or cables | F25: Add or remove mounts | L25: Person | M25: =IF('Menu Sheet'!E18="YES","Req'd",IF(M24="Class IV","Req'd",IF(M24="Class III","Req'd",IF(M20>0,"Req'd",IF(O20>0,"May Be Req'd","Not Req'd"))))) -> Not Req'd | P25: Type III | Q25: ='Type 3'!E17 -> 66.87666442 | R25: ='Type 3'!E18 -> Self Support Tower
A26: Replace structural members | F26: ="Add Reinforcing "&IF(M21="Req'd","",IF(J26="X","- Engr May Be Req'd","")) -> Add Reinforcing | P26: Other
A27: ="Replace Guy Wires "&IF(M21="Req'd","",IF(E27="X","- Engr May Be Req'd","")) -> Replace Guy Wires | F27: ="Cutting - Welding "&IF(M21="Req'd","",IF(J27="X","- Engr May Be Req'd","")) -> Cutting - Welding
A28: Install new foundations | F28: Install mounts/antennas and lines | M28: =IF(C13="Class IV","FALSE",IF(E24="","FALSE","TRUE")) -> FALSE
A29: ="Modify Foundations "&IF(M21="Req'd","",IF(E29="X","- Engr May Be Req'd","")) -> Modify Foundations | F29: Remove mounts/antennas and lines
A30: ="Change Bolts "&IF(M21="Req'd","",IF(E30="X","- Engr May Be Req'd","")) -> Change Bolts | F30: Other Specify | M30: =D17 -> 0 | O30: =VLOOKUP(M30,Contacts!B16:D24,2,FALSE) ->  | Q30: =VLOOKUP(M30,Contacts!B16:D24,3,FALSE) -> 
A31: Project Primary Equipment | M31: =D18 -> 0 | O31: =VLOOKUP(M31,Contacts!B28:D36,2,FALSE) ->  | Q31: =VLOOKUP(M31,Contacts!B28:D36,3,FALSE) -> 
A32: Main Hoist | D32: ="Gin Pole"&IF(M21="Req'd","",IF(G32="X","/ Engr May Be Req'd","")) -> Gin Pole | H32: (Other Equip)
A33: Tag Hoist | D33: Tower Crane | H33: (Other Equip)
A34: Guy Pull Hoist | D34: Capstan Hoist | H34: (Other Equip)
A35: Project Rigging Equipment
A36: Tirfors | D36: Shackles | G36: Blocks
A37: Transit/Theodolite | D37: Hooks | G37: Inline Overhaul Ball
A38: Tension Meter | D38: Tag Rope | G38: =IF(J37="X","Ball Weight-lbs","") -> 
A39: Load Rope | D39: IWRC Slings | G39: Counter Weight Overhaul Ball
A40: Preforms | D40: Synthethic Slings | G40: =IF(J39="X","Ball Weight-lbs","") -> 
A41: Lift and Tag Method
B42: Lift Type | C42: Type I | E42: No. of Parts | G42: =IF(C42="Type I",S45,IF(C42="Type II",S46,IF(C42="Type III",S47,""))) -> 1
A43: Load Lifting Material and Capacity | M43: Crown Block Load | N43: Crown Vertical | O43: Crown Horizontal | P43: Heel Block Load | Q43: Tag Load | R43: Hoist Load | S43: No. of Line Parts
A44: IWRC | D44: KernMantle Rope | G44: Double Braid Rope | L44: Type
A45: IWRC WLL | D45: KernMantle WLL | G45: Double Braid WLL | L45: Type 1 | M45: ='Type 1'!J25 -> 140.9040363 | N45: ='Type 1'!Q26 -> 139.0613609 | O45: ='Type 1'!Q24 -> 22.7131098 | Q45: ='Type 1'!P42 -> 18.27426878 | R45: ='Type 1'!M37 -> 70.45238948 | S45: ='Type 1'!G19 -> 1
A46: Block | D46: Slings | G46: Shackles | L46: Type 2 | M46: ='Type 2'!G24 -> 35.49704213 | N46: ='Type 2'!K22 -> 34.07716045 | O46: ='Type 2'!K20 -> 10.2 | R46: ='Type 2'!Q44 -> 17.03858022 | S46: 1
A47: Type of Lift | L47: Type 3 | M47: ='Type 3'!F23 -> 150.6134675 | N47: ='Type 3'!M25 -> 150.5664816 | O47: ='Type 3'!M23 -> 3.761812374 | P47: ='Type 3'!E49 -> 106.516951 | Q47: ='Type 3'!J41 -> 9.166998481 | R47: ='Type 3'!F46 -> 75.33023408 | S47: ='Type 3'!E19 -> 1
A48: Regular | C48: X | D48: Personnel | G48: Special Engineered Lift | L48: Other
A49: =H8 -> 00:00:00 | B49: Job No. | C49: =C12 -> 0 | D49: Site: | E49: =C8 -> 0 | G49: =IF('Menu Sheet'!E10="","","Client:") ->  | H49: =H9 -> 
A50: Scope/Description of Work
A52: Loads from Calculation Forms
A53: Gross Load Weight | C53: =H13 -> 55.07431199 | D53: Tag Force or Load | F53: =IF(C42="Type I",Q45,IF(C42="Type III",Q47,"")) -> 18.27426878 | G53: Crown Block Vertical Load | J53: =IF(C42="Type I",N45,IF(C42="Type II",N46,IF(C42="Type III",N47,""))) -> 139.0613609
A54: =IF(C42="Type III","Heel Block Load","") ->  | C54: =IF(C42="Type III",'Type 3'!E49,"") ->  | D54: Hoist Line Pull | F54: =IF(C42="Type I",R45,IF(C42="Type II",R46,IF(C42="Type III",R47,""))) -> 70.45238948 | G54: Crown Block Horizontal Load | J54: =IF(C42="Type I",O45,IF(C42="Type II",O46,IF(C42="Type III",O47,""))) -> 22.7131098
A55: General Information
A57: Description of Work Sequence - Use "Extra Sequence Sheet" if necessary
A59: Description of Reinforcing Sequence - Use "Extra Sequence Sheet" if necessary
A61: Competent Rigger Signature
A65: =Credits!B11 -> Version 5.6 - February 19, 2019

Sheet Site Layout (hidden)

Sheet Type 1
B3: Contact | E3: Gordon Lyman | W3: Bill Griswold
B4: Email | D4: gl@esystemtraining.com | W4: BillGriswold@Live.com
B5: Mobile No | E5: (210) 410-2091 | N5: Crown Block Only with Straight Tag | W5: (704) 906-9113
G7: Job Information: | Q7: Note: Fields in | R7: Blue | T7: are for input. | AI7: Monopole Tower
B8: Date: | G8: ='Menu Sheet'!E9 -> 00:00:00 | AI8: Self Support Tower
B9: Contractor: | G9: ='Menu Sheet'!K9 -> 0 | AI9: Guyed Tower
B10: Job No.: | G10: ='Menu Sheet'!K15 -> 0
B11: Competent Rigger: | G11: ='Menu Sheet'!K14 -> 0
B12: Client Name: | G12: ='Menu Sheet'!E10 -> 0 | AB12: 1
B13: Site Name: | G13: ='Menu Sheet'!E12 -> 0 | AB13: 2
B14: Site No.: | G14: ='Menu Sheet'!E13 -> 0 | Q14: =IF(AB24>AB37,"WARNING - LOAD ANGLE EXCEEDS MAXIMUM!","") ->  | AB14: 3
B15: Lifted Load (lbs): | G15: ='Menu Sheet'!K17 + 'Menu Sheet'!K18 -> 0
B16: Lines + Friction (lbs): | G16: =('Menu Sheet'!K17 + 'Menu Sheet'!K18 + AD43)*(AB45-1) + AD43 -> 55.07431199
B17: Total Load (lbs): | G17: =G15+G16 -> 55.07431199
B18: Tower Type: | G18: Self Support Tower
B19: Number of Parts: | G19: 1
O22: Notes to Engineer | AA22: =IF(U19="Angle",TRUE,FALSE) -> FALSE
I23: ='Menu Sheet'!K19 -> Block 1 - 1000 | O23: Max Horizontal Load on
P24: Tower | Q24: =AB30+AB32 -> 22.7131098 | T24: lbs. | AA24: Alpha = | AB24: =ATAN(H40/(W26-C39))*180/PI() -> 9.090276921 | AC24: Lift Angle
J25: =AB36 -> 140.9040363 | L25: lbs. | O25: Max Vertical Load on | W25: ft. | AA25: Beta = | AB25: =ATAN(W26/L49)*180/PI() -> 80.53767779 | AC25: Hoist Angle
J26: =IF(J25>'Menu Sheet'!S9,"Block Capacity Exceeded","") ->  | P26: Tower | Q26: =(AB29*G19)+AB31 -> 139.0613609 | T26: lbs. | W26: 300 | AA26: Gamma = | AB26: =ATAN(C39/(L51-H40))*180/PI() -> 52.47573739 | AC26: Tag Angle
O27: Loads DO NOT include Impact
Q28: =IF(U19="Angle","Degrees","") -> 
L29: =AB24 -> 9.090276921 | N29: Degrees | Q29: =IF(U19="Distance","Degrees","") ->  | AA29: A = | AB29: =AB48*(1/G19)/(1-TAN(AB24*PI()/180)*TAN(AB26*PI()/180)) -> 69.56755199 | AC29: Line Load - Vertical
AA30: B = | AB30: =AB29*TAN(AB24*PI()/180)*G19 -> 11.13080832 | AC30: Line & Tag Load - Horizontal
O31: =IF(L29>10,"Warning - Load Angle Exceeds 10 degs.","") ->  | AA31: C = | AB31: =AB34*SIN(AB25*PI()/180) -> 69.4938089 | AC31: Hoist Load - Vertical
AA32: D = | AB32: =AB34*COS(AB25*PI()/180) -> 11.58230148 | AC32: Hoist Load - Horizontal
AA33: E = | AB33: =AB30*TAN(T43*PI()/180) -> 14.49324 | AC33: Tag Load - Vertical
AA34: Line Load = | AB34: =SQRT((AB29^2)+(AB30^2)) -> 70.45238948 | AC34: SQRT(A^2 + B^2)
AA35: Tag Load = | AB35: =SQRT((AB33^2)+(AB30^2)) -> 18.27426878 | AC35: SQRT(B^2 + E^2)
M36: ="Hoist is "&'Menu Sheet'!K21 -> Hoist is Capstan - 770 | AA36: Crown Block | AB36: =SQRT(((AB30+AB32)^2)+(((AB29*G19)+AB31)^2)) -> 140.9040363 | AC36: SQRT((B+D)^2 + (A*G16 + C)^2))
M37: =AB34 -> 70.45238948 | O37: lbs. | P37: =IF(T43>70,"Warning, Tag Angle Exceeds 70 degs.","") ->  | AA37: Error Angle | AB37: =ATAN(L51/W26)*180/PI() -> 33.69006753
M38: =IF(M37>'Menu Sheet'!S11,"Capacity Exceeded","") -> 
C39: 250 | AB39: Length | AC39: Wt/Ft | AD39: Total Wt
H40: 8 | AA40: Lift Line | AB40: =SQRT((W26-C39)^2 + H40^2)*G19 -> 50.6359556 | AC40: ='Menu Sheet'!Q20 -> 0.08 | AD40: =AB40*AC40 -> 4.050876448
AA41: Hoist Line | AB41: =SQRT(W26^2 + L49^2) -> 304.1381265 | AC41: =AC40 -> 0.08 | AD41: =AB41*AC41 -> 24.33105012
P42: =AB35 -> 18.27426878 | AA42: Tag Line | AB42: =SQRT(C39^2 + L51^2) -> 320.1562119 | AC42: ='Menu Sheet'!Q21 -> 0.08 | AD42: =AB42*AC42 -> 25.61249695
I43: =G15 -> 0 | K43: lbs. | T43: =AB26 -> 52.47573739 | V43: Degrees | AD43: =SUM(AD40:AD42) -> 53.99442352
M45: =AB25 -> 80.53767779 | AA45: Sheave | AB45: =('Menu Sheet'!Q18^G19)*G19*('Menu Sheet'!Q18-1)/(('Menu Sheet'!Q18^G19)-1) -> 1.02
M46: Degrees | AA46: Friction
S48: =AB32 -> 11.58230148 | V48: =AB30 -> 11.13080832 | X48: lbs. | AB48: ='Menu Sheet'!K17 + 'Menu Sheet'!K18 + AB49 -> 55.07431199
L49: 50 | AB49: =('Menu Sheet'!K17 + 'Menu Sheet'!K18 + AD43)*(AB45-1) + AD43 -> 55.07431199
L51: 200 | R51: =AB31 -> 69.4938089
V52: =AB33 -> 14.49324 | X52: lbs.
B54: Project Notes
B58: Disclaimer: The information and calculations provided by this document have been developed by a reliable source in compliance with industry standards and are believed to be correct. This information should not be relied upon for a specific application without competent professional examination and verification of its accuracy, suitability, and applicability. This document may not be adaptable to all situations and should be used at your own risk.
B60: =Credits!B11 -> Version 5.6 - February 19, 2019 | X60: Developed by Griswold Tower Software, PC

Sheet Type 2
B3: Contact | C3: Gordon Lyman | J3: Bill Griswold
B4: Email | C4: gl@esystemtraining.com | J4: BillGriswold@Live.com
B5: Mobile No | C5: (210) 410-2091 | F5: Crown Block Only with Trolly System | J5: (704) 906-9113
E7: Job Information: | H7: Note - Fields in | J7: Blue | K7: are for input. | W7: Monopole Tower
B8: Date: | E8: ='Menu Sheet'!E9 -> 00:00:00 | W8: Self Support Tower
B9: Contractor: | E9: ='Menu Sheet'!K9 -> 0 | J9: Note: The values for this Lift Type Change with Elevation. All Values Shown are Maximums. | W9: Guyed Tower
B10: Job No.: | E10: ='Menu Sheet'!K15 -> 0
B11: Competent Rigger: | E11: ='Menu Sheet'!K14 -> 0
B12: Client Name: | E12: ='Menu Sheet'!E10 -> 0
B13: Site Name: | E13: ='Menu Sheet'!E12 -> 0
B14: Site No.: | E14: ='Menu Sheet'!E13 -> 0 | T14: Y = | U14: 100
B15: Lifted Load (lbs): | E15: ='Menu Sheet'!K17 + 'Menu Sheet'!K18 -> 0
B16: Lines + Friction (lbs): | E16: =Q45 -> 17.03858022
B17: Total Load (lbs): | E17: =E15+E16 -> 17.03858022
B18: Tower Type: | E18: Self Support Tower | J18: Notes to Engineer: | T18: αᵒ | U18: X1 | V18: Y2
J19: Max Horizontal Load on | T19: 23.555 | U19: 39.235 | V19: 10
J20: Tower | K20: =(2*ROUND(F48*Q44/I24,1)) -> 10.2 | T20: 21.444 | U20: 31.423 | V20: 20
J21: Max Vertical Load on | P21: α = | Q21: 13.282 | T21: 19.794 | U21: 25.192 | V21: 30
E22: ='Menu Sheet'!K19 -> Block 1 - 1000 | I22: ft. | J22: Tower | K22: =2*Q44 -> 34.07716045 | P22: Y = | Q22: 100 | T22: 18.435 | U22: 20 | V22: 40
J23: Loads DO NOT include Impact | P23: X = | Q23: 50 | T23: 17.281 | U23: 15.556 | V23: 50
G24: =INT(2*Q44)/COS(F29*PI()/180) -> 35.49704213 | I24: 100 | P24: % of Y = | Q24: 100 | T24: 16.281 | U24: 11.684 | V24: 60
F25: =IF(G24>'Menu Sheet'!S9,"Block Capacity Exceeded","") ->  | P25: = 0? | Q25: =(-Q23) + (Q22*Q24/100)*(TAN(2*Q21*PI()/180)) + (Q22*(100-Q24)/100)*(TAN(Q21*PI()/180)) -> -0.002293291592 | T25: 15.402 | U25: 8.265 | V25: 70
T26: 14.62 | U26: 5.216 | V26: 80
I27: Height to Attachment to Tower = | P27: X1 = | Q27: =Q23 - (Q28*TAN(Q21*PI()/90)) -> 0.002293291592 | T27: 13.918 | U27: 2.476 | V27: 90
F28: ="Max Lift Angle = " -> Max Lift Angle = | H28: =ROUND(ATAN(F48/I24)*180/PI(),1)&" Deg" -> 16.7 Deg | P28: Y2 = | Q28: =(Q24/100)*Q22 -> 100 | T28: 13.282 | U28: 0.002 | V28: 100
F29: =ATAN(F48/I24)*180/PI() -> 16.69924423
R36: Length | S36: Wt/Ft | T36: Total Wt
Q37: Lift Line | R37: =SQRT((I24)^2 +F48^ 2) -> 104.4030651 | S37: ='Menu Sheet'!Q20 -> 0.08 | T37: =R37*S37*2 -> 16.70449041
G38: ="Winch Line Pull = "&INT(G24/2)&" lbs" -> Winch Line Pull = 17 lbs
F39: =E15 -> 0
Q40: Friction | R40: ='Menu Sheet'!Q18 -> 1.02
P42: Lines + Friction | R42: =T37 + (R40 - 1)*(T37 + 'Menu Sheet'!K17 + 'Menu Sheet'!K18) -> 17.03858022
E43: =IF(Q44>'Menu Sheet'!S11,"Hoist Capacity Exceeded","") -> 
Q44: ='Menu Sheet'!K17 + 'Menu Sheet'!K18 + Q45 -> 17.03858022
E45: ="Hoist is "&'Menu Sheet'!K21 -> Hoist is Capstan - 770 | K45: =K20/2 -> 5.1 | Q45: =R42 -> 17.03858022
F48: 30 | G48: ft.
D50: Horizontal Distance to Hoist
K51: =Q44 -> 17.03858022
B52: Project Notes
B56: Disclaimer: The information and calculations provided by this document have been developed by a reliable source in compliance with industry standards and are believed to be correct. This information should not be relied upon for a specific application without competent professional examination and verification of its accuracy, suitability, and applicability. This document may not be adaptable to all situations and should be used at your own risk.
B58: =Credits!B11 -> Version 5.6 - February 19, 2019 | L58: Developed by Griswold Tower Software, PC

Sheet Type 3
B3: Contact | C3: Gordon Lyman | L3: Bill Griswold
B4: Email | C4: gl@esystemtraining.com | L4: BillGriswold@Live.com
B5: Mobile No | C5: (210) 410-2091 | F5: Crown and Heel Blocks with Straight Tag | L5: (704) 906-9113
E7: Job Information: | I7: Note: Fields in | J7: Blue | K7: are for input. | Q7: 1 | Y7: Monopole Tower
B8: Date: | E8: ='Menu Sheet'!E9 -> 00:00:00 | Q8: 2 | Y8: Self Support Tower
B9: Contractor: | E9: ='Menu Sheet'!K9 -> 0 | Q9: 3 | Y9: Guyed Tower
B10: Job No.: | E10: ='Menu Sheet'!K15 -> 0
B11: Competent Rigger: | E11: ='Menu Sheet'!K14 -> 0
B12: Client Name: | E12: ='Menu Sheet'!E10 -> 0 | Q12: Distance
B13: Site Name: | E13: ='Menu Sheet'!E12 -> 0 | Q13: Angle
B14: Site No.: | E14: ='Menu Sheet'!E13 -> 0 | Q14: =L19 -> Distance
B15: Lifted Load: | E15: ='Menu Sheet'!K17 + 'Menu Sheet'!K18 -> 0
B16: Lines + Friction (lbs): | E16: =R47 -> 66.87666442
B17: Total Load (lbs): | E17: =E15+E16 -> 66.87666442
B18: Tower Type: | E18: Self Support Tower | I18: Choose Load Line Angle or Stand off Distance
B19: Parts: | E19: 1 | L19: Distance | M19: =+IF(Q14="Angle","Degrees","Feet") -> Feet
Q20: =IF(Q14="Distance",TRUE,FALSE) -> TRUE
F21: ='Menu Sheet'!K19 -> Block 1 - 1000 | L21: Notes to Engineer:
L22: Max Horizontal Load on | Q22: =IF(Q14="Angle",TRUE,FALSE) -> FALSE
F23: =R33 -> 150.6134675 | L23: Tower | M23: =R28 -> 3.761812374 | N23: lbs.
E24: =IF(F23>'Menu Sheet'!S9,"Block Capacity Exceeded","") ->  | L24: Max Vertical Load on | Q24: Alpha = | R24: =IF(Q14="Angle",G28,G29) -> 2.862405226
G25: =IF(Q14="Angle",IF(G28>10,"Warning - Load Angle Exceeds 10 degs.",""),IF(G29>10,"Warning - Load Angle Exceeds 10 degs.","")) ->  | L25: Tower | M25: =E19*R27+R31 -> 150.5664816 | N25: lbs. | Q25: Standoff = | R25: =IF(Q14="Angle",E35,E34) -> 10
L26: Loads DO NOT include Impact | Q26: Beta = | R26: =ATAN(H41/(G51-R25))*180/PI() -> 65.77225468
Q27: A = | R27: =R46*(1/E19)/(1-TAN(R24*PI()/180)*TAN(R26*PI()/180)) -> 75.23624747 | T27: A = | U27: Line Load - Vertical
G28: 3 | I28: =IF(Q14="Angle","Degrees","") ->  | Q28: B = | R28: =R27*TAN(R24*PI()/180)*E19 -> 3.761812374 | T28: B = | U28: Line & Tag Load - Horizontal
G29: =ATAN((E34)/(K29-H41))*180/PI() -> 2.862405226 | I29: =IF(Q14="Distance","Degrees","") -> Degrees | K29: 400 | Q29: C = | R29: =R28*TAN(R26*PI()/180) -> 8.359583053 | T29: C = | U29: Tag Load - Vertical
Q30: D = | R30: =R28 -> 3.761812374 | T30: D = | U30: Tag Load - Horizontal
G31: =IF(R24>R34,"WARNING - LOAD ANGLE EXCEEDS MAXIMUM!","") ->  | Q31: Line Load = | R31: =SQRT((R27^2)+(R28^2)) -> 75.33023408 | T31: Line Load = | U31: SQRT(A^2 + B^2)
Q32: Tag Load = | R32: =SQRT((R29^2)+(R30^2)) -> 9.166998481 | T32: Tag Load = | U32: SQRT(C^2 + D^2)
E33: Standoff | Q33: Crown Block | R33: =SQRT((R28^2)+((R31+(R27*E19))^2)) -> 150.6134675 | T33: Crown Block | U33: SQRT((B^2) + (A*G16 + C)^2)
E34: 10 | Q34: Error Angle | R34: =ATAN(G51/K29)*180/PI() -> 14.03624347
E35: =(K29-H41)*TAN(G28*PI()/180) -> 10.48155586
L36: =IF(J45>70,"Warning, Tag Angle Exceeds 70 degs.","") ->  | R36: Length | S36: Wt/Ft | T36: Total Wt
Q37: Lift Line | R37: =SQRT(R25^2 + (K29 - H41)^2)*E19 -> 200.2498439 | S37: ='Menu Sheet'!Q20 -> 0.08 | T37: =R37*S37 -> 16.01998752
Q38: Hoist Line | R38: =K29 -> 400 | S38: =S37 -> 0.08 | T38: =R38*S38 -> 32
F39: =E15 -> 0 | G39: lbs. | Q39: Tag Line | R39: =+SQRT((G51-E34)^2 + H41^2) -> 219.317122 | S39: ='Menu Sheet'!Q21 -> 0.08 | T39: =R39*S39 -> 17.54536976
T40: =SUM(T37:T39) -> 65.56535728
H41: 200 | J41: =R32 -> 9.166998481 | K41: lbs. | M41: Tag Hoist
M42: ='Menu Sheet'!K22 -> Hand | Q42: Sheave | R42: =('Menu Sheet'!Q18^E19)*E19*('Menu Sheet'!Q18-1)/(('Menu Sheet'!Q18^E19)-1) -> 1.02
E43: =IF(E49>'Menu Sheet'!S10,"Block Capacity Exceeded","") ->  | M43: =IF(J41>'Menu Sheet'!S12,"Capacity Exceeded","") ->  | Q43: Friction
M44: Horizontal Tag Load
J45: =R26 -> 65.77225468
F46: =R31 -> 75.33023408 | J46: Degrees | M46: =R30 -> 3.761812374 | R46: ='Menu Sheet'!K17 + 'Menu Sheet'!K18 + R47 -> 66.87666442
R47: =('Menu Sheet'!K17 + 'Menu Sheet'!K18 + T40)*(R42-1) + T40 -> 66.87666442
E49: =1.414*F46 -> 106.516951 | I49: ='Menu Sheet'!K21 -> Capstan - 770 | M49: =R29 -> 8.359583053
E50: ='Menu Sheet'!K20 -> Block 1 - 1000 | M50: Vertical Tag Load
G51: 100 | I51: =IF(F46>'Menu Sheet'!S11,"Capacity Exceeded","") -> 
B54: Project Notes
B58: Disclaimer: The information and calculations provided by this document have been developed by a reliable source in compliance with industry standards and are believed to be correct. This information should not be relied upon for a specific application without competent professional examination and verification of its accuracy, suitability, and applicability. This document may not be adaptable to all situations and should be used at your own risk.
B60: =Credits!B11 -> Version 5.6 - February 19, 2019 | N60: Developed by Griswold Tower Software, PC

Sheet Angle Chart
B3: Contact | C3: Gordon Lyman | L3: Bill Griswold
B4: Email | C4: gl@esystemtraining.com | L4: BillGriswold@Live.com
B5: Mobile No | C5: (210) 410-2091 | F5: Angle Finder Tool | L5: (704) 906-9113
E7: Job Information: | I7: Note: Fields in | J7: Blue | K7: are for input. | Y7: Monopole Tower
B8: Date: | E8: ='Menu Sheet'!E9 -> 00:00:00 | Y8: Self Support Tower
B9: Contractor: | E9: ='Menu Sheet'!K9 -> 0 | Y9: Guyed Tower
B10: Job No.: | E10: ='Menu Sheet'!K15 -> 0
B11: Competent Rigger: | E11: ='Menu Sheet'!K14 -> 0
B12: Client Name: | E12: ='Menu Sheet'!E10 -> 0 | Q12: Distance
B13: Site Name: | E13: ='Menu Sheet'!E12 -> 0 | Q13: Angle
B14: Site No.: | E14: ='Menu Sheet'!E13 -> 0 | I14: =IF(R21>R31,"WARNING - LOAD ANGLE EXCEEDS MAXIMUM!","") -> 
B15: Tower Type: | E15: Self Support Tower
Q17: =IF(L16="Distance",TRUE,FALSE) -> FALSE
Q19: =IF(L16="Angle",TRUE,FALSE) -> FALSE
Q21: Alpha = | R21: =IF(L16="Angle",G25,F23) -> 9.462322208
Q22: Standoff = | R22: =IF(L16="Angle",#REF!,E32) -> 0
F23: =ATAN((F48)/(K25))*180/PI() -> 9.462322208 | G23: Degrees | Q23: Beta = | R23: =ATAN(H37/(F48-R22))*180/PI() -> 0
Q24: A = | R24: =F36/(1-TAN(R21*PI()/180)*TAN(R23*PI()/180)) -> 0
I25: =IF(L16="Angle","Degrees","") ->  | K25: 150 | Q25: B = | R25: =R24*TAN(R21*PI()/180) -> 0
I26: =IF(L16="Distance","Degrees","") ->  | Q26: C = | R26: =R25*TAN(R23*PI()/180) -> 0
Q27: D = | R27: =R25 -> 0
Q28: Line Load = | R28: =SQRT((R24^2)+(R25^2)) -> 0
Q29: Tag Load = | R29: =SQRT((R26^2)+(R27^2)) -> 0
Q30: Crown Block | R30: =SQRT((R25^2)+((R28+R24)^2)) -> 0
Q31: Error Angle | R31: =ATAN(F48/K25)*180/PI() -> 9.462322208
F37: =90-F23 -> 80.53767779
F38: Degrees
F48: 25
B51: Project Notes
B55: Disclaimer: The information and calculations provided by this document have been developed by a reliable source in compliance with industry standards and are believed to be correct. This information should not be relied upon for a specific application without competent professional examination and verification of its accuracy, suitability, and applicability. This document may not be adaptable to all situations and should be used at your own risk.
B57: =Credits!B11 -> Version 5.6 - February 19, 2019 | N57: Developed by Griswold Tower Software, PC

Sheet Face Block Mount
B3: Contact | E3: Gordon Lyman | U3: Bill Griswold | AA3: Crown Block Load | AB3: Heel Block Load
B4: Email | D4: gl@esystemtraining.com | U4: BillGriswold@Live.com | Z4: Type
B5: Mobile No | E5: (210) 410-2091 | J5: Face Mounted Crown and Heel Blocks | U5: (704) 906-9113 | Z5: Type 1 | AA5: ='Type 1'!J25 -> 140.9040363
Z6: Type 2 | AA6: ='Type 2'!G24 -> 35.49704213
G7: Job Information: | Z7: Type 3 | AA7: ='Type 3'!F23 -> 150.6134675 | AB7: ='Type 3'!E49 -> 106.516951
B8: Date: | G8: ='Menu Sheet'!E9 -> 00:00:00
B9: Contractor: | G9: ='Menu Sheet'!K9 -> 0 | Z9: ='Type 1'!G18 -> Self Support Tower
B10: Job No.: | G10: ='Menu Sheet'!K15 -> 0 | Z10: ='Type 2'!E18 -> Self Support Tower
B11: Competent Rigger: | G11: ='Menu Sheet'!K14 -> 0 | Z11: ='Type 3'!E18 -> Self Support Tower
B12: Client Name: | G12: ='Menu Sheet'!E10 -> 0
B13: Site Name: | G13: ='Menu Sheet'!E12 -> 0 | Z13: Basketed
B14: Site No.: | G14: ='Menu Sheet'!E13 -> 0 | P14: =IF(G15="Monopole Tower","WARNING - This Page Not Applicable to Monopoles","") ->  | Z14: Choked
B15: Tower Type: | G15: =IF(Z16="Type 1",Z9,IF(Z16="Type 2",Z10,IF(Z16="Type 3",Z11,""))) -> Self Support Tower | N15: =IF(G15="Monopole Tower","<----","") -> 
B16: Rigging Type | G16: Type 1 | Z16: =G16 -> Type 1
C18: Crown Block Face Attachment
B19: Sling Arrangement | G19: Choked | P19: Block Force | T19: =IF(Z16="Type 1",AA5,IF(Z16="Type 2",AA6,(IF(Z16="Type 3",AA7,"")))) -> 140.9040363 | W19: Lbs | Z19: =G19 -> Choked
B20: Crown Block Sling | G20: S2 - 16 - 1500 | P20: Sling Length | T20: =IF(Z16="","",VLOOKUP(Z20,Equipment!F11:K24,3,FALSE)*12) -> 192 | W20: In. | Z20: =G20 -> S2 - 16 - 1500
B21: Face Width at Crown | G21: 30 | N21: In. | P21: Sling Capacity | T21: =IF(Z16="","",VLOOKUP(Z20,Equipment!F11:K24,5,FALSE)) -> 1500 | W21: Lbs
B22: Leg Size | G22: 2.5 | N22: In. | P22: Sling Force | T22: =IF(Z16="","",IF(Z19="Choked",1,0.5)*(T19/2)/COS(PI()*T23/360)) -> 70.68691126 | W22: Lbs
P23: Included Angle | T23: =IF(Z16="","",(360/PI())*ASIN(G21*IF(Z19="Choked",0.5,1)/(T20-3.14*G22))) -> 9.344446715 | W23: Degrees
Q24: =IF(Z16="","",IF(T21>T22,"Crown Block Sling is Sufficient","Crown Block Sling is Over Capacity")) -> Crown Block Sling is Sufficient
P25: =IF(Z16="","",IF(G21>IF(Z19="Choked",(T20-3.14*G22),0.5*(T20-3.14*G22)),"WARNING - Crown Block Sling to Short","")) -> 
C26: =IF(Z16="Type 3","Heel Block Face Attachment","") -> 
B27: =IF(Z16="Type 3","Sling Arrangement","") ->  | G27: Choked | P27: =IF(Z16="Type 3","Block Force","") ->  | T27: =IF(Z16="Type 1","",IF(Z16="Type 2","",IF(Z16="Type 3",AB7,""))) ->  | W27: =IF(Z16="Type 3","Lbs","") ->  | Z27: =G27 -> Choked
B28: =IF(Z16="Type 3","Heel Block Sling","") ->  | G28: S3 - 12 - 2000 | P28: =IF(Z16="Type 3","Sling Length","") ->  | T28: =IF(Z16="Type 3",VLOOKUP(Z28,Equipment!F11:K24,3,FALSE)*12,"") ->  | W28: =IF(Z16="Type 3","In.","") ->  | Z28: =G28 -> S3 - 12 - 2000
B29: =IF(Z16="Type 3","Face Width at Heel","") ->  | G29: 30 | N29: =IF(Z16="Type 3","In.","") ->  | P29: =IF(Z16="Type 3","Sling Capacity","") ->  | T29: =IF(Z16="Type 3",VLOOKUP(Z28,Equipment!F11:K24,5,FALSE),"") ->  | W29: =IF(Z16="Type 3","Lbs","") -> 
B30: =IF(Z16="Type 3","Leg Size","") ->  | G30: 2.5 | N30: =IF(Z16="Type 3","In.","") ->  | P30: =IF(Z16="Type 3","Sling Force","") ->  | T30: =IF(Z16="Type 3",IF(Z27="Choked",1,0.5)*(T27/2)/COS(PI()*T31/360),"") ->  | W30: =IF(Z16="Type 3","Lbs","") -> 
P31: =IF(Z16="Type 3","Included Angle","") ->  | T31: =IF(Z16="Type 3",(360/PI())*ASIN(G29*IF(Z27="Choked",0.5,1)/(T28-3.14*G30)),"") ->  | W31: =IF(Z16="Type 3","Degrees","") -> 
Q32: =IF(Z16="Type 3",IF(T29>T30,"Heel Block Sling is Sufficient","Heel Block Sling is Over Capacity"),"") -> 
P33: =IF(Z16="Type 3",IF(G29>IF(Z27="Choked",(T28-3.14*G30),0.5*(T28-3.14*G30)),"WARNING - Heel Block Sling to Short",""),"") -> 
O43: Notes:
O44: 1. Face Width is Out to Out of Tower Legs
O45: 2. Included Angle should be less than 60 Deg
O46: 3. For Round Tower Legs use Diameter of Leg
O47: 4. For Angle Tower Legs use Dimension of
O48: 4. one leg of the Angle - See Above
B49: Project Notes
B53: Disclaimer: The information and calculations provided by this document have been developed by a reliable source in compliance with industry standards and are believed to be correct. This information should not be relied upon for a specific application without competent professional examination and verification of its accuracy, suitability, and applicability. This document may not be adaptable to all situations and should be used at your own risk.
B55: =Credits!B11 -> Version 5.6 - February 19, 2019 | X55: Developed by Griswold Tower Software, PC

Sheet Equipment
D1: JOINTLY SERVING THE TOWER INDUSTRY with TRAINING and ENGINEERING
B3: Contact | C3: Gordon Lyman | J3: Bill Griswold
B4: Email | C4: gl@esystemtraining.com | D4: Listing of Contractor's Equipment | J4: BillGriswold@Live.com
B5: Mobile No | C5: (210) 410-2091 | J5: (704) 906-9113
T7: Cable Designation | U7: Safe Working Load | V7: Min. Breaking Strength (lbs) | W7: Weight (lbs/ft)
B9: HOIST INFORMATION | F9: SLING INFORMATION | T9: No Cable | U9: 0 | W9: 0
B10: Hoist Name | C10: Working Capacity (Pounds) | D10: Cable Size and Type | F10: Sling Name | H10: Length (Ft) | J10: Capacity (Pounds) | O10: Hoist Name | P10: Safe Load | Q10: Weight lbs/ft | T10: =IF('Rope Chart'!B5="","",'Rope Chart'!B5) -> 1/4" - 6 x 19 | U10: =IF('Rope Chart'!C5="","",'Rope Chart'!C5) -> 1150 | V10: =IF('Rope Chart'!D5="","",'Rope Chart'!D5) -> 5750 | W10: =IF('Rope Chart'!E5="","",'Rope Chart'!E5) -> 0.12 | X10: =IF('Rope Chart'!F5="","",'Rope Chart'!F5) -> Wire | Y10: Directions
B11: Hoist 1 - 1000 | C11: 1000 | D11: 1/4" - 6 x 19 | E11: =IF(C11>P11,"WARNING","") ->  | F11: S1 - 10 - 1000 | H11: 10 | J11: 1000 | O11: =B11 -> Hoist 1 - 1000 | P11: =VLOOKUP(D11,$T$9:$W$55,2,FALSE) -> 1150 | Q11: =VLOOKUP(D11,$T$9:$W$55,4,FALSE) -> 0.12 | R11: =VLOOKUP(D11,$T$9:$X$55,5,FALSE) -> Wire | T11: =IF('Rope Chart'!B6="","",'Rope Chart'!B6) -> 5/16" - 6 x 19 | U11: =IF('Rope Chart'!C6="","",'Rope Chart'!C6) -> 1750 | V11: =IF('Rope Chart'!D6="","",'Rope Chart'!D6) -> 8750 | W11: =IF('Rope Chart'!E6="","",'Rope Chart'!E6) -> 0.18 | X11: =IF('Rope Chart'!F6="","",'Rope Chart'!F6) -> Wire | Y11: List all applicable Hoists, Blocks and Slings in the appropriate columns. If you have several identical hoists, blocks or slings only list them one time. Also provide the rated working capacity for each of these and the lengths of the slings. Be sure and save a master copy of this spreadsheet once this information has been input so that you don't have to re-input the information everytime you use it. When starting a new rigging plan choose the hoist(s) and block(s) on the Menu Sheet using the drop down boxes located just below the lifted load input cell. The names of these pieces of equipment will appear on the Type 1, 2 and 3 Rigging Plan sheets. If the capacity of one of these pieces of equipment is exceeded a warning will appear in RED LETTERS adjacent to the equipment.
B12: Hoist 2 - 1500 | C12: 1500 | D12: 5/16" - 6 x 19 | E12: =IF(C12>P12,"WARNING","") ->  | F12: S2 - 16 - 1500 | H12: 16 | J12: 1500 | O12: Hoist 2 - 1500 | P12: =VLOOKUP(D12,$T$9:$W$55,2,FALSE) -> 1750 | Q12: =VLOOKUP(D12,$T$9:$W$55,4,FALSE) -> 0.18 | R12: =VLOOKUP(D12,$T$9:$X$55,5,FALSE) -> Wire | T12: =IF('Rope Chart'!B7="","",'Rope Chart'!B7) -> 3/8" - 6 x 19 | U12: =IF('Rope Chart'!C7="","",'Rope Chart'!C7) -> 2550 | V12: =IF('Rope Chart'!D7="","",'Rope Chart'!D7) -> 11250 | W12: =IF('Rope Chart'!E7="","",'Rope Chart'!E7) -> 0.26 | X12: =IF('Rope Chart'!F7="","",'Rope Chart'!F7) -> Wire
B13: Hoist 3 - 2000 | C13: 2000 | D13: 3/8" - 6 x 19 | F13: S3 - 12 - 2000 | H13: 12 | J13: 2000 | O13: Hoist 3 - 2000 | P13: 2550 | Q13: 0.26 | R13: Wire | T13: =IF('Rope Chart'!B8="","",'Rope Chart'!B8) -> 7/16" - 6 x 19 | U13: =IF('Rope Chart'!C8="","",'Rope Chart'!C8) -> 3450 | V13: =IF('Rope Chart'!D8="","",'Rope Chart'!D8) -> 17250 | W13: =IF('Rope Chart'!E8="","",'Rope Chart'!E8) -> 0.35 | X13: =IF('Rope Chart'!F8="","",'Rope Chart'!F8) -> Wire
B14: Hoist 4 - 5000 | C14: 5000 | D14: 1/2" - 6X36 EEIP | F14: S4 - 18 - 2000 | H14: 18 | J14: 2000 | O14: Hoist 4 - 5000 | P14: 5840 | Q14: 0.46 | R14: Wire | T14: =IF('Rope Chart'!B9="","",'Rope Chart'!B9) -> 1/2" - 6 x 19 | U14: =IF('Rope Chart'!C9="","",'Rope Chart'!C9) -> 4700 | V14: =IF('Rope Chart'!D9="","",'Rope Chart'!D9) -> 23500 | W14: =IF('Rope Chart'!E9="","",'Rope Chart'!E9) -> 0.46 | X14: =IF('Rope Chart'!F9="","",'Rope Chart'!F9) -> Wire
B15: Capstan - 770 | C15: 770 | D15: 1/2" Synthetic Rope | F15: S5 - 15 - 5000 | H15: 15 | J15: 5000 | O15: Capstan - 770 | P15: 770 | Q15: 0.08 | R15: Synthetic | T15: =IF('Rope Chart'!B10="","",'Rope Chart'!B10) -> 9/16" - 6 x 19 | U15: =IF('Rope Chart'!C10="","",'Rope Chart'!C10) -> 5700 | V15: =IF('Rope Chart'!D10="","",'Rope Chart'!D10) -> 28500 | W15: =IF('Rope Chart'!E10="","",'Rope Chart'!E10) -> 0.59 | X15: =IF('Rope Chart'!F10="","",'Rope Chart'!F10) -> Wire
B16: Hand | C16: 200 | D16: 1/2" Synthetic Rope | F16: S6 - 20 - 5000 | H16: 20 | J16: 5000 | O16: Hand | P16: 770 | Q16: 0.08 | R16: Synthetic | T16: =IF('Rope Chart'!B11="","",'Rope Chart'!B11) -> 5/8" - 6 x 19 | U16: =IF('Rope Chart'!C11="","",'Rope Chart'!C11) -> 7100 | V16: =IF('Rope Chart'!D11="","",'Rope Chart'!D11) -> 35500 | W16: =IF('Rope Chart'!E11="","",'Rope Chart'!E11) -> 0.72 | X16: =IF('Rope Chart'!F11="","",'Rope Chart'!F11) -> Wire
O17: 0 | T17: =IF('Rope Chart'!B12="","",'Rope Chart'!B12) -> 3/4" - 6 x 19 | U17: =IF('Rope Chart'!C12="","",'Rope Chart'!C12) -> 10200 | V17: =IF('Rope Chart'!D12="","",'Rope Chart'!D12) -> 51000 | W17: =IF('Rope Chart'!E12="","",'Rope Chart'!E12) -> 1.04 | X17: =IF('Rope Chart'!F12="","",'Rope Chart'!F12) -> Wire
O18: 0 | T18: =IF('Rope Chart'!B13="","",'Rope Chart'!B13) -> 7/8" - 6 x 19 | U18: =IF('Rope Chart'!C13="","",'Rope Chart'!C13) -> 13750 | V18: =IF('Rope Chart'!D13="","",'Rope Chart'!D13) -> 68750 | W18: =IF('Rope Chart'!E13="","",'Rope Chart'!E13) -> 1.42 | X18: =IF('Rope Chart'!F13="","",'Rope Chart'!F13) -> Wire
O19: 0 | T19: =IF('Rope Chart'!B14="","",'Rope Chart'!B14) -> 1" - 6 x 19 | U19: =IF('Rope Chart'!C14="","",'Rope Chart'!C14) -> 17950 | V19: =IF('Rope Chart'!D14="","",'Rope Chart'!D14) -> 89750 | W19: =IF('Rope Chart'!E14="","",'Rope Chart'!E14) -> 1.85 | X19: =IF('Rope Chart'!F14="","",'Rope Chart'!F14) -> Wire
O20: 0 | T20: =IF('Rope Chart'!B15="","",'Rope Chart'!B15) -> 9/16" - 6 x 37 | U20: =IF('Rope Chart'!C15="","",'Rope Chart'!C15) -> 5350 | V20: =IF('Rope Chart'!D15="","",'Rope Chart'!D15) -> 26750 | W20: =IF('Rope Chart'!E15="","",'Rope Chart'!E15) -> 0.59 | X20: =IF('Rope Chart'!F15="","",'Rope Chart'!F15) -> Wire
O21: 0 | T21: =IF('Rope Chart'!B16="","",'Rope Chart'!B16) -> 5/8" - 6 x 37 | U21: =IF('Rope Chart'!C16="","",'Rope Chart'!C16) -> 6900 | V21: =IF('Rope Chart'!D16="","",'Rope Chart'!D16) -> 34500 | W21: =IF('Rope Chart'!E16="","",'Rope Chart'!E16) -> 0.72 | X21: =IF('Rope Chart'!F16="","",'Rope Chart'!F16) -> Wire
O22: 0 | T22: =IF('Rope Chart'!B17="","",'Rope Chart'!B17) -> 3/4" - 6 x 37 | U22: =IF('Rope Chart'!C17="","",'Rope Chart'!C17) -> 9500 | V22: =IF('Rope Chart'!D17="","",'Rope Chart'!D17) -> 47500 | W22: =IF('Rope Chart'!E17="","",'Rope Chart'!E17) -> 1.04 | X22: =IF('Rope Chart'!F17="","",'Rope Chart'!F17) -> Wire
B23: Additional Cable Information may in entered on the "Wire Rope Chart" tab. | T23: =IF('Rope Chart'!B18="","",'Rope Chart'!B18) -> 7/8" - 6 x 37 | U23: =IF('Rope Chart'!C18="","",'Rope Chart'!C18) -> 13000 | V23: =IF('Rope Chart'!D18="","",'Rope Chart'!D18) -> 65000 | W23: =IF('Rope Chart'!E18="","",'Rope Chart'!E18) -> 1.42 | X23: =IF('Rope Chart'!F18="","",'Rope Chart'!F18) -> Wire
T24: =IF('Rope Chart'!B19="","",'Rope Chart'!B19) -> 1" - 6 x 37 | U24: =IF('Rope Chart'!C19="","",'Rope Chart'!C19) -> 17000 | V24: =IF('Rope Chart'!D19="","",'Rope Chart'!D19) -> 85000 | W24: =IF('Rope Chart'!E19="","",'Rope Chart'!E19) -> 1.85 | X24: =IF('Rope Chart'!F19="","",'Rope Chart'!F19) -> Wire
B25: BLOCK INFORMATION | O25: Block Name | P25: Friction Constant | T25: =IF('Rope Chart'!B20="","",'Rope Chart'!B20) -> 1/2" Synthetic Rope | U25: =IF('Rope Chart'!C20="","",'Rope Chart'!C20) -> 770 | V25: =IF('Rope Chart'!D20="","",'Rope Chart'!D20) -> 7700 | W25: =IF('Rope Chart'!E20="","",'Rope Chart'!E20) -> 0.08 | X25: =IF('Rope Chart'!F20="","",'Rope Chart'!F20) -> Synthetic
B26: Block Name | C26: Working Capacity (Pounds) | D26: Sheave Bearing Type | O26: =B27 -> Block 1 - 1000 | P26: =IF(D27=O$40,1.09,IF(D27=O$41,1.045,IF(D27=O$42,1.02,1.09))) -> 1.02 | T26: =IF('Rope Chart'!B21="","",'Rope Chart'!B21) -> 9/16" Synthetic Rope | U26: =IF('Rope Chart'!C21="","",'Rope Chart'!C21) -> 1020 | V26: =IF('Rope Chart'!D21="","",'Rope Chart'!D21) -> 10200 | W26: =IF('Rope Chart'!E21="","",'Rope Chart'!E21) -> 0.102 | X26: =IF('Rope Chart'!F21="","",'Rope Chart'!F21) -> Synthetic
B27: Block 1 - 1000 | C27: 1000 | D27: Roller Bearings | O27: Block 2 - 2000 | P27: 1.045 | T27: =IF('Rope Chart'!B22="","",'Rope Chart'!B22) -> 5/8" Synthetic Rope | U27: =IF('Rope Chart'!C22="","",'Rope Chart'!C22) -> 1330 | V27: =IF('Rope Chart'!D22="","",'Rope Chart'!D22) -> 13300 | W27: =IF('Rope Chart'!E22="","",'Rope Chart'!E22) -> 0.133 | X27: =IF('Rope Chart'!F22="","",'Rope Chart'!F22) -> Synthetic
B28: Block 2 - 2000 | C28: 2000 | D28: Bronze Bushing | O28: Block 3 - 5000 | P28: 1.045 | T28: =IF('Rope Chart'!B23="","",'Rope Chart'!B23) -> 3/4" Synthetic Rope | U28: =IF('Rope Chart'!C23="","",'Rope Chart'!C23) -> 1720 | V28: =IF('Rope Chart'!D23="","",'Rope Chart'!D23) -> 17000 | W28: =IF('Rope Chart'!E23="","",'Rope Chart'!E23) -> 0.18 | X28: =IF('Rope Chart'!F23="","",'Rope Chart'!F23) -> Synthetic
B29: Block 3 - 5000 | C29: 5000 | D29: Bronze Bushing | O29: Block 4 - 7500 | P29: 1.02 | T29: =IF('Rope Chart'!B24="","",'Rope Chart'!B24) -> 3/8" - 6X36 EEIP | U29: =IF('Rope Chart'!C24="","",'Rope Chart'!C24) -> 3320 | V29: =IF('Rope Chart'!D24="","",'Rope Chart'!D24) -> 16600 | W29: =IF('Rope Chart'!E24="","",'Rope Chart'!E24) -> 0.26 | X29: =IF('Rope Chart'!F24="","",'Rope Chart'!F24) -> Wire
B30: Block 4 - 7500 | C30: 7500 | D30: Roller Bearings | O30: 0 | P30: 1.09 | T30: =IF('Rope Chart'!B25="","",'Rope Chart'!B25) -> 1/2" - 6X36 EEIP | U30: =IF('Rope Chart'!C25="","",'Rope Chart'!C25) -> 5840 | V30: =IF('Rope Chart'!D25="","",'Rope Chart'!D25) -> 29200 | W30: =IF('Rope Chart'!E25="","",'Rope Chart'!E25) -> 0.46 | X30: =IF('Rope Chart'!F25="","",'Rope Chart'!F25) -> Wire
O31: 0 | P31: 1.09 | T31: =IF('Rope Chart'!B26="","",'Rope Chart'!B26) -> 9/16" - 6X36 EEIP | U31: =IF('Rope Chart'!C26="","",'Rope Chart'!C26) -> 7400 | V31: =IF('Rope Chart'!D26="","",'Rope Chart'!D26) -> 37000 | W31: =IF('Rope Chart'!E26="","",'Rope Chart'!E26) -> 0.59 | X31: =IF('Rope Chart'!F26="","",'Rope Chart'!F26) -> Wire
O32: 0 | P32: 1.09 | T32: =IF('Rope Chart'!B27="","",'Rope Chart'!B27) ->  | U32: =IF('Rope Chart'!C27="","",'Rope Chart'!C27) ->  | V32: =IF('Rope Chart'!D27="","",'Rope Chart'!D27) ->  | W32: =IF('Rope Chart'!E27="","",'Rope Chart'!E27) ->  | X32: =IF('Rope Chart'!F27="","",'Rope Chart'!F27) -> 
O33: 0 | P33: 1.09 | T33: =IF('Rope Chart'!B34="","",'Rope Chart'!B34) ->  | U33: =IF('Rope Chart'!C34="","",'Rope Chart'!C34) ->  | V33: =IF('Rope Chart'!D34="","",'Rope Chart'!D34) ->  | W33: =IF('Rope Chart'!E34="","",'Rope Chart'!E34) ->  | X33: =IF('Rope Chart'!F28="","",'Rope Chart'!F28) -> 
O34: 0 | P34: 1.09 | T34: =IF('Rope Chart'!B35="","",'Rope Chart'!B35) ->  | U34: =IF('Rope Chart'!C35="","",'Rope Chart'!C35) ->  | V34: =IF('Rope Chart'!D35="","",'Rope Chart'!D35) ->  | W34: =IF('Rope Chart'!E35="","",'Rope Chart'!E35) ->  | X34: =IF('Rope Chart'!F29="","",'Rope Chart'!F29) -> 
O35: 0 | P35: 1.09 | T35: =IF('Rope Chart'!B36="","",'Rope Chart'!B36) ->  | U35: =IF('Rope Chart'!C36="","",'Rope Chart'!C36) ->  | V35: =IF('Rope Chart'!D36="","",'Rope Chart'!D36) ->  | W35: =IF('Rope Chart'!E36="","",'Rope Chart'!E36) ->  | X35: =IF('Rope Chart'!F30="","",'Rope Chart'!F30) -> 
O36: 0 | P36: 1.09 | T36: =IF('Rope Chart'!B37="","",'Rope Chart'!B37) ->  | U36: =IF('Rope Chart'!C37="","",'Rope Chart'!C37) ->  | V36: =IF('Rope Chart'!D37="","",'Rope Chart'!D37) ->  | W36: =IF('Rope Chart'!E37="","",'Rope Chart'!E37) ->  | X36: =IF('Rope Chart'!F31="","",'Rope Chart'!F31) -> 
O37: 0 | P37: 1.09 | T37: =IF('Rope Chart'!B38="","",'Rope Chart'!B38) ->  | U37: =IF('Rope Chart'!C38="","",'Rope Chart'!C38) ->  | V37: =IF('Rope Chart'!D38="","",'Rope Chart'!D38) ->  | W37: =IF('Rope Chart'!E38="","",'Rope Chart'!E38) ->  | X37: =IF('Rope Chart'!F32="","",'Rope Chart'!F32) -> 
T38: =IF('Rope Chart'!B39="","",'Rope Chart'!B39) ->  | U38: =IF('Rope Chart'!C39="","",'Rope Chart'!C39) ->  | V38: =IF('Rope Chart'!D39="","",'Rope Chart'!D39) ->  | W38: =IF('Rope Chart'!E39="","",'Rope Chart'!E39) ->  | X38: =IF('Rope Chart'!F33="","",'Rope Chart'!F33) -> 
O39: Bearing Types | T39: =IF('Rope Chart'!B40="","",'Rope Chart'!B40) ->  | U39: =IF('Rope Chart'!C40="","",'Rope Chart'!C40) ->  | V39: =IF('Rope Chart'!D40="","",'Rope Chart'!D40) ->  | W39: =IF('Rope Chart'!E40="","",'Rope Chart'!E40) ->  | X39: =IF('Rope Chart'!F34="","",'Rope Chart'!F34) -> 
B40: Disclaimer: The information and calculations provided by this document have been developed by a reliable source in compliance with industry standards and are believed to be correct. This information should not be relied upon for a specific application without competent professional examination and verification of its accuracy, suitability, and applicability. This document may not be adaptable to all situations and should be used at your own risk. | O40: No Bearings | T40: =IF('Rope Chart'!B41="","",'Rope Chart'!B41) ->  | U40: =IF('Rope Chart'!C41="","",'Rope Chart'!C41) ->  | V40: =IF('Rope Chart'!D41="","",'Rope Chart'!D41) ->  | W40: =IF('Rope Chart'!E41="","",'Rope Chart'!E41) ->  | X40: =IF('Rope Chart'!F35="","",'Rope Chart'!F35) -> 
O41: Bronze Bushing
B42: =Credits!B11 -> Version 5.6 - February 19, 2019 | L42: Developed by Griswold Tower Software, PC | O42: Roller Bearings

Sheet Contacts
B2: Competent Rigger | F2: Contractor Contact / Project Manager
B3: Name | C3: Company | D3: Phone No. | F3: Name | G3: Phone No.
B4: Joe Smith | C4: Rigging, Inc. | D4: 2235551234 | F4: Daniel Boone | G4: 2235551212
B14: Qualified Person
B15: Name | C15: Company | D15: Phone No.
B16: Sam Houston | C16: Houston International | D16: 3215551212
F18: Notes: 1. List people in each of the applicable catagories in order for them to be available on the forms in each of the applicable catagories. 2. Input phone numbers without any dashes, spaces, or other special characters.
B26: Qualified Engineer
B27: Name | C27: Company | D27: Phone No.
B28: William A. Griswold, Jr. PE | C28: GTS, PC | D28: 7049069113

Sheet Rope Chart
B2: Cable Designation | C2: Safe Working Load | D2: Min. Breaking Strength (lbs) | E2: Weight (lbs/ft) | F2: Wire/ Synthetic | H2: Wire
H3: Synthetic | I3: NOTES
B4: No Cable | C4: 0 | D4: 0 | E4: 0 | F4: Wire | I4: The Wire Rope in this chart is based on Independent Wire Rope Core (IWRC) cable with improved plow steel (IPS) and the breaking strength specified is based on catalogue charts which may be lower than the actual specification sheet for a cable. Both the Wire and Synthetic Rope values in this chart are based on general nominal values. We recommend you add your rope values to this chart below based on the manufacturer's specifications. Rows in White are availble for these additional values. Be sure and designate either Wire or Synthetic Rope.
B5: 1/4" - 6 x 19 | C5: 1150 | D5: 5750 | E5: 0.12 | F5: Wire
B6: 5/16" - 6 x 19 | C6: 1750 | D6: 8750 | E6: 0.18 | F6: Wire
B7: 3/8" - 6 x 19 | C7: 2550 | D7: 11250 | E7: 0.26 | F7: Wire
B8: 7/16" - 6 x 19 | C8: 3450 | D8: 17250 | E8: 0.35 | F8: Wire
B9: 1/2" - 6 x 19 | C9: 4700 | D9: 23500 | E9: 0.46 | F9: Wire
B10: 9/16" - 6 x 19 | C10: 5700 | D10: 28500 | E10: 0.59 | F10: Wire
B11: 5/8" - 6 x 19 | C11: 7100 | D11: 35500 | E11: 0.72 | F11: Wire
B12: 3/4" - 6 x 19 | C12: 10200 | D12: 51000 | E12: 1.04 | F12: Wire
B13: 7/8" - 6 x 19 | C13: 13750 | D13: 68750 | E13: 1.42 | F13: Wire
B14: 1" - 6 x 19 | C14: 17950 | D14: 89750 | E14: 1.85 | F14: Wire
B15: 9/16" - 6 x 37 | C15: 5350 | D15: 26750 | E15: 0.59 | F15: Wire
B16: 5/8" - 6 x 37 | C16: 6900 | D16: 34500 | E16: 0.72 | F16: Wire
B17: 3/4" - 6 x 37 | C17: 9500 | D17: 47500 | E17: 1.04 | F17: Wire
B18: 7/8" - 6 x 37 | C18: 13000 | D18: 65000 | E18: 1.42 | F18: Wire
B19: 1" - 6 x 37 | C19: 17000 | D19: 85000 | E19: 1.85 | F19: Wire
B20: 1/2" Synthetic Rope | C20: 770 | D20: 7700 | E20: 0.08 | F20: Synthetic
B21: 9/16" Synthetic Rope | C21: 1020 | D21: 10200 | E21: 0.102 | F21: Synthetic
B22: 5/8" Synthetic Rope | C22: 1330 | D22: 13300 | E22: 0.133 | F22: Synthetic
B23: 3/4" Synthetic Rope | C23: 1720 | D23: 17000 | E23: 0.18 | F23: Synthetic
A24: Space for Additional Rope Data | B24: 3/8" - 6X36 EEIP | C24: 3320 | D24: 16600 | E24: 0.26 | F24: Wire
B25: 1/2" - 6X36 EEIP | C25: 5840 | D25: 29200 | E25: 0.46 | F25: Wire
B26: 9/16" - 6X36 EEIP | C26: 7400 | D26: 37000 | E26: 0.59 | F26: Wire

Sheet Extra Sequence Sheet
A1: Continuation of Description of Work Sequence
A3: Continuation of Description of Reinforcing Sequence
A5: =Credits!B11 -> Version 5.6 - February 19, 2019

Sheet Rigging requirements

Sheet Credits
A2: The Equation Development, Drafting and Primary Spreadsheet by William A. Griswold, Jr., PE
A3: Griswold Tower Software, PC
A5: Overview and Editing provided by Gordon Lyman
A6: eSystem Training Solutions
A8: Additional Macro Development provided by James M. Ruedlinger, PE
A9: Electronic Research, Inc.
A11: Version | B11: Version 5.6 - February 19, 2019
A13: 4.2 | B13: Formatting Improvements
A14: 4.3 | B14: Corrected problems with dropdown boxes on the Face Block Mount Tab
A15: 4.4 | B15: Added Note to Engineer - Reactions do not include an Impact Factor - Fixed "Angle" or "Distance" dropdown on Type 3 tab.
A16: 4.5 | B16: Corrected error in the Tag Angle - Type 1 Lift
A17: 5.0 | B17: Added ability to have 1, 2 or 3 line parts in the lift. Added Cable Weights and Sheave Friction Coefficients to Total Load. Corrected equations in Type 2.
A18: 5.1 | B18: Fixed for placement of contractor's logo on the "Rigging Plan" tab
A19: 5.2 | B19: The Force to Class IV was not working.
A20: 5.3 | B20: Fixed problem with the bearing selection on the blocks. Added the "Contacts" tab
A21: 5.4 | B21: Corrected the Class of Lift. The Gross Lifted Weight needed to include the weight of the lines and friction in the blocks.
A22: 5.5 | B22: Formatting Improvements - Added Continuation of Sequence Sheet
A23: 5.6 | B23: Added Synthetic Rope and Formating to the Rope Chart

Sheet Sheet2 (hidden)
C2: =IF(J7="Monopole Tower","MP_PIC",1) -> MP_PIC
J3: Monopole Tower
J4: Self Support Tower
J5: Guyed Tower
J7: Monopole Tower

Sheet Sheet1 (hidden)
G4: X1 | H4: Y2
B5: Alpha = | C5: 7 | G5: 0.002 | H5: 100
B6: Beta = | C6: 30 | G6: 2.476 | H6: 90
B7: Load = | C7: 300 | G7: 5.216 | H7: 80
G8: 8.265 | H8: 70
B9: tan(Alpha) = | C9: =TAN(C5*PI()/180) -> 0.1227845609 | G9: 11.684 | H9: 60
B10: tan(Alpha/2) = | C10: =TAN(C5*PI()/360) -> 0.06116262015 | G10: 15.556 | H10: 50
B11: tan(Beta) = | C11: =TAN(C6*PI()/180) -> 0.5773502692 | G11: 20 | H11: 40
G12: 25.192 | H12: 30
C13: =C7*C9 -> 36.83536827 | G13: 31.423 | H13: 20
C14: =C13*C10 -> 2.252947638 | G14: 39.235 | H14: 10
C15: =C7*(1 - C9*C10) -> 297.7470524 | G15: 50 | H15: 0
C16: =C15*C11 -> 171.9043408
